lending/lending_fUSD_20240710
["ID","MTS","AMOUNT","RATE_DAILY","PERIOD"]
[331663848,1720609844314,-500.0,0.00013807,2]
[331663850,1720609844324,-500.0,0.00013807,2]
[331663852,1720609844334,-500.0,0.00013807,2]
[331663854,1720609844343,-568.21,0.00013807,2]
[331663856,1720609844353,-500.0,0.00013807,2]
[331663858,1720609844362,-500.0,0.00013807,2]
[331663859,1720609844372,-500.0,0.00013807,2]
[331663860,1720609844381,-500.0,0.00013807,2]
[331663861,1720609844390,-500.0,0.00013807,2]
[331663862,1720609844400,-559.5,0.00013807,2]
[331663863,1720609844409,-500.0,0.00013807,2]
[331663864,1720609844419,-500.0,0.00013807,2]
[331663865,1720609844428,-500.0,0.00013807,2]
[331663866,1720609844438,-500.0,0.00013807,2]
[331663867,1720609844447,-702.33,0.00013807,2]
[331663868,1720609844456,-1019.12,0.00013807,2]
[331663869,1720609844466,-500.0,0.00013807,2]
[331663870,1720609844475,-180.69755315,0.00013808,2]
[331663871,1720609844485,-611.67,0.00013808,2]
[331663872,1720609844494,-500.0,0.00013808,2]
[331663873,1720609844504,-500.0,0.00013808,2]
[331663874,1720609844514,-500.0,0.00013808,2]
[331663875,1720609844523,-623.38,0.00013808,2]
[331663876,1720609844533,-500.0,0.00013808,2]
[331663877,1720609844542,-421.37618586,0.00013808,2]
[331663878,1720609844552,-500.0,0.00013808,2]
[331663879,1720609844561,-507.36215157,0.00013808,2]
[331663880,1720609844570,-500.0,0.00013808,2]
[331663881,1720609844580,-500.0,0.00013808,2]
[331663882,1720609844589,-500.0,0.00013808,2]
[331663883,1720609844599,-234.38017454,0.00013808,2]
[331663884,1720609844609,-500.0,0.00013808,2]
[331663885,1720609844619,-500.0,0.00013808,2]
[331663886,1720609844628,-500.0,0.00013808,2]
[331663887,1720609844639,-500.0,0.00013808,2]
[331663888,1720609844649,-500.0,0.00013808,2]
[331663889,1720609844660,-500.0,0.00013808,2]
[331663890,1720609844670,-500.0,0.00013808,2]
[331663891,1720609844680,-500.0,0.00013808,2]
[331663892,1720609844690,-500.0,0.00013808,2]
[331663893,1720609844699,-500.0,0.00013808,2]
[331663894,1720609844710,-500.0,0.00013808,2]
[331663895,1720609844721,-537.39,0.00013808,2]
[331663896,1720609844731,-500.0,0.00013808,2]
[331663897,1720609844741,-500.0,0.00013808,2]
[331663898,1720609844751,-500.0,0.00013808,2]
[331663899,1720609844761,-500.0,0.00013808,2]
[331663900,1720609844770,-500.0,0.00013808,2]
[331663901,1720609844781,-500.0,0.00013808,2]
[331663902,1720609844791,-500.0,0.00013808,2]
[331663903,1720609844801,-599.57992435,0.00013808,2]
[331663904,1720609844811,-500.0,0.00013808,2]
[331663905,1720609844822,-500.0,0.00013808,2]
[331663906,1720609844832,-500.0,0.00013808,2]
[331663907,1720609844842,-500.0,0.00013808,2]
[331663908,1720609844851,-500.0,0.00013808,2]
[331663909,1720609844916,-500.0,0.00013808,2]
[331663910,1720609844927,-500.0,0.00013808,2]
[331663911,1720609844938,-500.0,0.00013808,2]
[331663912,1720609844948,-500.0,0.00013808,2]
[331663913,1720609844957,-500.0,0.00013808,2]
[331663914,1720609844968,-500.0,0.00013808,2]
[331663915,1720609844977,-500.0,0.00013808,2]
[331663916,1720609844987,-500.0,0.00013808,2]
[331663917,1720609844999,-655.95,0.00013808,2]
[331663918,1720609845010,-500.0,0.00013808,2]
[331663919,1720609845020,-500.0,0.00013808,2]
[331663920,1720609845030,-500.0,0.00013808,2]
[331663921,1720609845040,-500.0,0.00013808,2]
[331663922,1720609845050,-385.88009863,0.00013808,2]
[331663923,1720609845405,-114.11990137,0.00013808,2]
[331663924,1720609845415,-283.91409863,0.00013808,2]
[331663925,1720609845466,-216.08590137,0.00013808,2]
[331663926,1720609845476,-500.0,0.00013808,2]
[331663927,1720609845486,-501.09,0.00013808,2]
[331663928,1720609845497,-500.0,0.00013808,2]
[331663929,1720609845506,-500.0,0.00013808,2]
[331663930,1720609845517,-500.0,0.00013808,2]
[331663931,1720609845527,-500.0,0.00013808,2]
[331663932,1720609845536,-500.0,0.00013808,2]
[331663933,1720609845546,-500.0,0.00013808,2]
[331663934,1720609845555,-500.0,0.00013808,2]
[331663935,1720609845565,-500.0,0.00013808,2]
[331663936,1720609845574,-500.0,0.00013808,2]
[331663937,1720609845583,-500.0,0.00013808,2]
[331663938,1720609845593,-500.0,0.00013808,2]
[331663939,1720609845602,-542.79469747,0.00013808,2]
[331663940,1720609845612,-589.99,0.00013808,2]
[331663941,1720609845621,-500.0,0.00013808,2]
[331663942,1720609845630,-500.0,0.00013808,2]
[331663943,1720609845647,-500.0,0.00013808,2]
[331663944,1720609845657,-500.0,0.00013808,2]
[331663945,1720609845666,-500.0,0.00013808,2]
[331663946,1720609845676,-500.0,0.00013808,2]
[331663947,1720609845685,-500.0,0.00013808,2]
[331663948,1720609845694,-500.0,0.00013808,2]
[331663949,1720609845704,-500.0,0.00013808,2]
[331663950,1720609845713,-500.0,0.00013808,2]
[331663951,1720609845722,-612.16,0.00013808,2]
[331663952,1720609845731,-500.0,0.00013808,2]
[331663953,1720609845741,-500.0,0.00013808,2]
[331663954,1720609845751,-500.0,0.00013808,2]
[331663955,1720609845762,-500.0,0.00013808,2]
[331663956,1720609845771,-564.83,0.00013808,2]
[331663957,1720609845780,-500.0,0.00013808,2]
[331663958,1720609845789,-500.0,0.00013808,2]
[331663959,1720609845799,-500.0,0.00013808,2]
[331663960,1720609845808,-500.0,0.00013808,2]
[331663961,1720609845817,-500.0,0.00013808,2]
[331663962,1720609845827,-500.0,0.00013808,2]
[331663963,1720609845836,-500.0,0.00013808,2]
[331663964,1720609845845,-636.48,0.00013808,2]
[331663965,1720609845859,-500.0,0.00013808,2]
[331663966,1720609845869,-500.0,0.00013808,2]
[331663967,1720609845879,-500.0,0.00013808,2]
[331663968,1720609845888,-500.0,0.00013808,2]
[331663969,1720609845898,-500.0,0.00013808,2]
[331663970,1720609845907,-500.0,0.00013808,2]
[331663971,1720609845917,-500.0,0.00013808,2]
[331663972,1720609845927,-500.0,0.00013808,2]
[331663973,1720609845937,-500.0,0.00013808,2]
[331663974,1720609845946,-500.0,0.00013808,2]
[331663975,1720609845955,-500.0,0.00013808,2]
[331663976,1720609845965,-500.0,0.00013808,2]
[331663977,1720609845974,-500.0,0.00013808,2]
[331663978,1720609845986,-500.0,0.00013808,2]
[331663979,1720609845996,-500.0,0.00013808,2]
[331663980,1720609846009,-500.0,0.00013808,2]
[331663981,1720609846019,-500.0,0.00013808,2]
[331663982,1720609846029,-86.56940116,0.00013808,2]
[331663983,1720609846058,-415.28059884,0.00013808,2]
[331663984,1720609846068,-233.17587558,0.00013808,2]
[331663987,1720609847148,-336.84091214,0.00013752,2]
[331663988,1720609847159,-163.15908786,0.00013752,2]
[331663989,1720609847169,-384.31048886,0.00013807,2]
[331663990,1720609847180,-115.68951114,0.00013807,2]
[331663991,1720609847191,-293.68412442,0.00013808,2]
[331663992,1720609847200,-105.00272811,0.00013808,2]
[331663993,1720609847263,-545.06727189,0.00013808,2]
[331663994,1720609847272,-500.0,0.00013808,2]
[331663995,1720609847282,-667.58,0.00013808,2]
[331663996,1720609847292,-500.0,0.00013808,2]
[331663997,1720609847301,-500.0,0.00013808,2]
[331663998,1720609847311,-238.87372927,0.00013808,2]
[331663999,1720609847841,-261.12627073,0.00013808,2]
[331664000,1720609847850,-984.79,0.00013808,2]
[331664001,1720609847861,-500.0,0.00013808,2]
[331664002,1720609847870,-545.47,0.00013808,2]
[331664003,1720609847880,-500.0,0.00013808,2]
[331664004,1720609847890,-594.00006458,0.00013808,2]
[331664005,1720609847901,-500.0,0.00013808,2]
[331664006,1720609847911,-512.7,0.00013808,2]
[331664007,1720609847920,-60.62504938,0.00013808,2]
[331664008,1720609847933,-439.37495062,0.00013808,2]
[331664009,1720609847942,-66.67989378,0.00013808,2]
[331664010,1720609847953,-433.32010622,0.00013808,2]
[331664011,1720609847962,-500.0,0.00013808,2]
[331664012,1720609847972,-656.39,0.00013808,2]
[331664013,1720609847982,-500.0,0.00013808,2]
[331664014,1720609847991,-102.64146487,0.00013808,2]
[331664015,1720609848006,-397.35853513,0.00013808,2]
[331664016,1720609848017,-757.19,0.00013808,2]
[331664017,1720609848027,-500.0,0.00013808,2]
[331664018,1720609848036,-500.0,0.00013808,2]
[331664019,1720609848045,-500.0,0.00013808,2]
[331664020,1720609848054,-656.68808486,0.00013808,2]
[331664021,1720609848066,-238.13191514,0.00013808,2]
[331664022,1720609848075,-500.0,0.00013808,2]
[331664023,1720609848084,-607.99,0.00013808,2]
[331664024,1720609848093,-552.52,0.00013808,2]
[331664025,1720609848103,-500.0,0.00013808,2]
[331664026,1720609848113,-689.27,0.00013808,2]
[331664027,1720609848122,-343.23846125,0.00013808,2]
[331664028,1720609848134,-468.34153875,0.00013808,2]
[331664029,1720609848143,-560.93,0.00013808,2]
[331664030,1720609848152,-500.0,0.00013808,2]
[331664031,1720609848162,-500.0,0.00013808,2]
[331664032,1720609848172,-500.0,0.00013808,2]
[331664033,1720609848183,-214.30066625,0.00013808,2]
[331664034,1720609848195,-285.69933375,0.00013808,2]
[331664035,1720609848205,-500.0,0.00013808,2]
[331664036,1720609848216,-8137.71052672,0.00013833,2]
[331664037,1720609848226,-5075.78507131,0.00013833,2]
[331664038,1720609848235,-500.0,0.00013847,2]
[331664039,1720609848244,-200.0,0.00013847,2]
[331664040,1720609848382,-526.787877,0.00013849,2]
[331664041,1720609848392,-1149.965486,0.00013849,2]
[331664042,1720609848402,-632.722724,0.00013849,2]
[331664043,1720609848411,-500.0,0.00013861,2]
[331664044,1720609848422,-500.0,0.00013861,2]
[331664045,1720609848431,-500.0,0.00013861,2]
[331664046,1720609848441,-595.55,0.00013861,2]
[331664047,1720609848451,-1410.4,0.00013861,2]
[331664048,1720609848460,-1179.87,0.00013861,2]
[331664049,1720609848469,-500.0,0.00013861,2]
[331664050,1720609848478,-900.15,0.00013861,2]
[331664051,1720609848488,-2369.07,0.00013861,2]
[331664052,1720609848498,-500.0,0.00013861,2]
[331664053,1720609848509,-916.05,0.00013861,2]
[331664054,1720609848518,-500.0,0.00013861,2]
[331664055,1720609848527,-500.0,0.00013861,2]
[331664056,1720609848538,-500.0,0.00013861,2]
[331664057,1720609848548,-534.7,0.00013861,2]
[331664058,1720609848557,-598.18,0.00013861,2]
[331664059,1720609848567,-500.0,0.00013861,2]
[331664060,1720609848576,-624.3,0.00013861,2]
[331664061,1720609848585,-500.0,0.00013861,2]
[331664062,1720609848595,-500.0,0.00013861,2]
[331664063,1720609848605,-500.0,0.00013861,2]
[331664064,1720609848615,-300.13298632,0.00013861,2]
[331664065,1720609848627,-475.71701368,0.00013861,2]
[331664066,1720609848636,-500.0,0.00013861,2]
[331664067,1720609848645,-500.0,0.00013861,2]
[331664068,1720609848654,-500.0,0.00013861,2]
[331664069,1720609848664,-501.29,0.00013861,2]
[331664070,1720609848673,-544.47,0.00013861,2]
[331664071,1720609848682,-500.0,0.00013861,2]
[331664072,1720609848691,-500.0,0.00013861,2]
[331664073,1720609848700,-500.0,0.00013861,2]
[331664074,1720609848709,-4173.73,0.00013861,2]
[331664075,1720609848718,-500.0,0.00013861,2]
[331664076,1720609848728,-500.0,0.00013861,2]
[331664077,1720609848737,-515.61,0.00013861,2]
[331664078,1720609848747,-500.0,0.00013861,2]
[331664079,1720609848760,-595.56,0.00013861,2]
[331664080,1720609848770,-500.0,0.00013861,2]
[331664081,1720609848780,-544.06,0.00013861,2]
[331664082,1720609848789,-638.67879225,0.00013861,2]
[331664083,1720609848798,-500.0,0.00013861,2]
[331664084,1720609848807,-500.0,0.00013861,2]
[331664085,1720609848816,-2389.76,0.00013861,2]
[331664086,1720609848825,-500.0,0.00013861,2]
[331664087,1720609848834,-500.0,0.00013861,2]
[331664088,1720609848844,-605.849634,0.00013861,2]
[331664089,1720609848854,-500.0,0.00013862,2]
[331664090,1720609848864,-500.0,0.00013862,2]
[331664091,1720609848873,-500.0,0.00013862,2]
[331664092,1720609848892,-561.55293522,0.00013862,2]
[331664093,1720609848905,-500.0,0.00013862,2]
[331664094,1720609848914,-500.0,0.00013862,2]
[331664095,1720609848923,-500.0,0.00013862,2]
[331664096,1720609848933,-500.0,0.00013862,2]
[331664097,1720609848944,-500.0,0.00013862,2]
[331664098,1720609848955,-500.0,0.00013862,2]
[331664099,1720609848965,-500.0,0.00013862,2]
[331664100,1720609848975,-156.74679835,0.00013862,2]
[331664101,1720609848984,-500.0,0.00013862,2]
[331664102,1720609848995,-500.0,0.00013862,2]
[331664103,1720609849007,-500.0,0.00013862,2]
[331664104,1720609849018,-484.10285074,0.00013862,2]
[331664105,1720609849030,-500.0,0.00013862,2]
[331664106,1720609849040,-500.0,0.00013862,2]
[331664107,1720609849051,-500.0,0.00013862,2]
[331664108,1720609849061,-500.0,0.00013862,2]
[331664109,1720609849071,-500.0,0.00013862,2]
[331664110,1720609849081,-500.0,0.00013862,2]
[331664111,1720609849091,-500.0,0.00013862,2]
[331664112,1720609849101,-500.0,0.00013862,2]
[331664113,1720609849112,-500.0,0.00013862,2]
[331664114,1720609849122,-500.0,0.00013862,2]
[331664115,1720609849133,-500.0,0.00013862,2]
[331664116,1720609849143,-500.0,0.00013862,2]
[331664117,1720609849152,-500.0,0.00013862,2]
[331664118,1720609849163,-562.86,0.00013862,2]
[331664119,1720609849173,-500.0,0.00013862,2]
[331664120,1720609849183,-500.0,0.00013862,2]
[331664121,1720609849193,-408.19915455,0.00013862,2]
[331664122,1720609849203,-500.0,0.00013862,2]
[331664123,1720609849215,-565.49,0.00013862,2]
[331664124,1720609849226,-500.0,0.00013862,2]
[331664125,1720609849236,-500.0,0.00013862,2]
[331664126,1720609849246,-500.0,0.00013862,2]
[331664127,1720609849256,-500.0,0.00013862,2]
[331664128,1720609849266,-500.0,0.00013862,2]
[331664129,1720609849276,-211.67,0.00013862,2]
[331664130,1720609849288,-500.0,0.00013862,2]
[331664131,1720609849298,-173.51198272,0.00013862,2]
[331664132,1720609849310,-500.0,0.00013862,2]
[331664133,1720609849320,-403.38722685,0.00013862,2]
[331664134,1720609849330,-575.61010631,0.00013862,2]
[331664135,1720609849341,-500.0,0.00013862,2]
[331664136,1720609849351,-507.92,0.00013862,2]
[331664137,1720609849360,-500.0,0.00013862,2]
[331664138,1720609849370,-500.0,0.00013862,2]
[331664139,1720609849381,-500.0,0.00013862,2]
[331664140,1720609849391,-500.0,0.00013862,2]
[331664141,1720609849400,-500.0,0.00013862,2]
[331664142,1720609849411,-500.0,0.00013862,2]
[331664143,1720609849420,-500.0,0.00013862,2]
[331664144,1720609849430,-500.0,0.00013862,2]
[331664145,1720609849440,-500.0,0.00013862,2]
[331664146,1720609849450,-500.0,0.00013862,2]
[331664147,1720609849460,-838.56,0.00013862,2]
[331664148,1720609849470,-500.0,0.00013862,2]
[331664149,1720609849480,-0.51427756,0.00013862,2]
[331664150,1720609849494,-567.27572244,0.00013862,2]
[331664151,1720609849504,-500.0,0.00013862,2]
[331664152,1720609849514,-504.782776,0.00013862,2]
[331664153,1720609849524,-500.0,0.00013862,2]
[331664154,1720609849534,-500.0,0.00013862,2]
[331664155,1720609849544,-277.97404003,0.00013862,2]
[331664156,1720609849554,-191.70937563,0.00013862,2]
[331664157,1720609849567,-283.2823812,0.00013862,2]
[331664158,1720609849580,-25.00824317,0.00013862,2]
[331664159,1720609849591,-500.0,0.00013862,2]
[331664160,1720609849600,-500.0,0.00013862,2]
[331664161,1720609849610,-500.0,0.00013862,2]
[331664162,1720609849620,-500.0,0.00013862,2]
[331664163,1720609849630,-291.82152359,0.00013862,2]
[331664164,1720609849640,-547.72,0.00013862,2]
[331664165,1720609849650,-500.0,0.00013862,2]
[331664166,1720609849660,-500.0,0.00013862,2]
[331664167,1720609849670,-500.0,0.00013862,2]
[331664168,1720609849680,-513.87,0.00013862,2]
[331664169,1720609849690,-500.0,0.00013862,2]
[331664170,1720609849700,-500.0,0.00013862,2]
[331664171,1720609849709,-500.0,0.00013862,2]
[331664172,1720609849719,-500.0,0.00013862,2]
[331664173,1720609849728,-626.51,0.00013862,2]
[331664174,1720609849738,-500.0,0.00013862,2]
[331664175,1720609849748,-500.0,0.00013862,2]
[331664176,1720609849759,-500.0,0.00013862,2]
[331664177,1720609849768,-562.23,0.00013862,2]
[331664178,1720609849778,-500.0,0.00013862,2]
[331664179,1720609849788,-500.0,0.00013862,2]
[331664180,1720609849798,-500.0,0.00013862,2]
[331664181,1720609849809,-500.0,0.00013862,2]
[331664182,1720609849819,-655.96,0.00013862,2]
[331664183,1720609849829,-619.27,0.00013862,2]
[331664184,1720609849838,-500.0,0.00013862,2]
[331664185,1720609849848,-500.0,0.00013862,2]
[331664186,1720609849858,-520.49,0.00013862,2]
[331664187,1720609849867,-500.0,0.00013862,2]
[331664188,1720609849876,-500.0,0.00013862,2]
[331664189,1720609849886,-500.0,0.00013862,2]
[331664190,1720609849896,-500.0,0.00013862,2]
[331664191,1720609849906,-500.0,0.00013862,2]
[331664192,1720609849916,-500.0,0.00013862,2]
[331664193,1720609849926,-500.0,0.00013862,2]
[331664194,1720609849935,-500.0,0.00013862,2]
[331664195,1720609849945,-500.0,0.00013862,2]
[331664196,1720609849958,-500.0,0.00013862,2]
[331664197,1720609849968,-500.0,0.00013862,2]
[331664198,1720609849977,-500.0,0.00013862,2]
[331664199,1720609849988,-500.0,0.00013862,2]
[331664200,1720609849999,-500.0,0.00013862,2]
[331664201,1720609850009,-500.0,0.00013862,2]
[331664202,1720609850020,-500.0,0.00013862,2]
[331664203,1720609850030,-500.0,0.00013862,2]
[331664204,1720609850041,-500.0,0.00013862,2]
[331664205,1720609850051,-500.0,0.00013862,2]
[331664206,1720609850061,-500.0,0.00013862,2]
[331664207,1720609850071,-500.0,0.00013862,2]
[331664208,1720609850080,-500.0,0.00013862,2]
[331664209,1720609850090,-625.84,0.00013862,2]
[331664210,1720609850102,-354.85623838,0.00013862,2]
[331664211,1720609850114,-500.0,0.00013862,2]
[331664212,1720609850125,-442.11587992,0.00013862,2]
[331664213,1720609850146,-382.51727014,0.00013862,2]
[331664214,1720609850163,-33.23684994,0.00013862,2]
[331664215,1720609850173,-302.06885433,0.00013862,2]
[331664216,1720609850185,-197.93114567,0.00013862,2]
[331664217,1720609850195,-500.0,0.00013862,2]
[331664218,1720609850205,-19.19279666,0.00013862,2]
[331664219,1720609850219,-480.80720334,0.00013862,2]
[331664220,1720609850229,-500.0,0.00013862,2]
[331664221,1720609850239,-500.0,0.00013862,2]
[331664222,1720609850250,-500.0,0.00013862,2]
[331664223,1720609850261,-500.0,0.00013862,2]
[331664224,1720609850271,-500.0,0.00013862,2]
[331664225,1720609850282,-500.0,0.00013862,2]
[331664226,1720609850292,-500.0,0.00013862,2]
[331664227,1720609850302,-500.0,0.00013862,2]
[331664228,1720609850313,-549.9,0.00013862,2]
[331664229,1720609850324,-500.0,0.00013862,2]
[331664230,1720609850334,-500.0,0.00013862,2]
[331664231,1720609850345,-480.14321456,0.00013862,2]
[331664232,1720609850355,-500.0,0.00013862,2]
[331664233,1720609850366,-137.9495821,0.00013862,2]
[331664234,1720609850379,-362.0504179,0.00013862,2]
[331664235,1720609850390,-89.2895821,0.00013862,2]
[331664236,1720609850648,-292.78977957,0.00013849,2]
[331664237,1720609850658,-4.84643796,0.00013862,2]
[331664238,1720609850669,-405.86397994,0.00013862,2]
[331664239,1720609850679,-500.0,0.00013862,2]
[331664240,1720609850688,-500.0,0.00013862,2]
[331664241,1720609850698,-500.0,0.00013862,2]
[331664242,1720609850708,-500.0,0.00013862,2]
[331664243,1720609850718,-500.0,0.00013862,2]
[331664244,1720609850728,-500.0,0.00013862,2]
[331664245,1720609850737,-345.80366756,0.00013862,2]
[331664246,1720609850750,-154.19633244,0.00013862,2]
[331664247,1720609850761,-523.37954431,0.00013862,2]
[331664248,1720609850776,-39.48045569,0.00013862,2]
[331664249,1720609850786,-500.0,0.00013862,2]
[331664250,1720609850796,-149.83360485,0.00013862,2]
[331664251,1720609850807,-350.16639515,0.00013862,2]
[331664252,1720609850818,-181.06730498,0.00013862,2]
[331664253,1720609850829,-318.93269502,0.00013862,2]
[331664254,1720609850840,-500.0,0.00013862,2]
[331664255,1720609850851,-500.0,0.00013862,2]
[331664256,1720609850861,-899.03,0.00013862,2]
[331664257,1720609850872,-281.75897576,0.00013862,2]
[331664258,1720609850882,-500.0,0.00013862,2]
[331664259,1720609850892,-595.7,0.00013862,2]
[331664260,1720609850902,-500.0,0.00013862,2]
[331664261,1720609850914,-397.57861359,0.00013862,2]
[331664262,1720609850923,-500.0,0.00013862,2]
[331664263,1720609850933,-234.01444919,0.00013862,2]
[331664264,1720609851324,-265.98555081,0.00013862,2]
[331664265,1720609851336,-500.0,0.00013862,2]
[331664266,1720609851346,-500.0,0.00013862,2]
[331664267,1720609851356,-500.0,0.00013862,2]
[331664268,1720609851366,-715.33,0.00013862,2]
[331664269,1720609851376,-500.0,0.00013862,2]
[331664270,1720609851387,-500.0,0.00013862,2]
[331664271,1720609851397,-500.0,0.00013862,2]
[331664272,1720609851407,-500.0,0.00013862,2]
[331664273,1720609851417,-713.66,0.00013862,2]
[331664274,1720609851427,-500.0,0.00013862,2]
[331664275,1720609851437,-781.59,0.00013862,2]
[331664276,1720609851446,-500.0,0.00013862,2]
[331664277,1720609851456,-500.0,0.00013862,2]
[331664278,1720609851467,-500.0,0.00013862,2]
[331664279,1720609851477,-500.0,0.00013862,2]
[331664280,1720609851487,-500.0,0.00013862,2]
[331664281,1720609851497,-500.0,0.00013862,2]
[331664282,1720609851508,-500.0,0.00013862,2]
[331664283,1720609851518,-500.0,0.00013862,2]
[331664284,1720609851528,-500.0,0.00013862,2]
[331664285,1720609851538,-500.0,0.00013862,2]
[331664286,1720609851549,-500.0,0.00013862,2]
[331664287,1720609851559,-500.0,0.00013862,2]
[331664288,1720609851569,-568.21,0.00013862,2]
[331664289,1720609851579,-500.0,0.00013862,2]
[331664290,1720609851589,-500.0,0.00013862,2]
[331664291,1720609851599,-500.0,0.00013862,2]
[331664292,1720609851609,-500.0,0.00013862,2]
[331664293,1720609851619,-500.0,0.00013862,2]
[331664294,1720609851629,-559.5,0.00013862,2]
[331664295,1720609851639,-500.0,0.00013862,2]
[331664296,1720609851648,-500.0,0.00013862,2]
[331664297,1720609851659,-22.32841767,0.00013862,2]
[331664298,1720609851671,-477.67158233,0.00013862,2]
[331664299,1720609851681,-500.0,0.00013862,2]
[331664300,1720609851691,-217.89922402,0.00013862,2]
[331664301,1720609851704,-484.43077598,0.00013862,2]
[331664302,1720609851714,-68.79037655,0.00013862,2]
[331664303,1720609851727,-950.32962345,0.00013862,2]
[331664304,1720609851737,-500.0,0.00013862,2]
[331664305,1720609851749,-300.67571173,0.00013862,2]
[331664306,1720609851761,-56.19073342,0.00013862,2]
[331664307,1720609851771,-500.0,0.00013863,2]
[331664308,1720609851780,-73.79246086,0.00013863,2]
[331664312,1720610250449,174.15,0.00010297,2]
[331664313,1720610255169,322.89,0.00010953,2]
[331664314,1720610271562,151.04,0.00011199,2]
[331664315,1720610271584,570.32501093,0.00011199,2]
[331664316,1720610309246,350.14808905,0.00011199,2]
[331664317,1720610320317,155.1643727,0.00011199,2]
[331664318,1720610320376,960.43759767,0.00011199,2]
[331664320,1720610322385,1782.57534508,0.00011199,2]
[331664321,1720610328713,666.19247465,0.00011199,2]
[331664322,1720610328743,1893.04178589,0.00011199,2]
[331664323,1720610354393,411.97119588,0.00011199,2]
[331664324,1720610358661,2559.23426054,0.00011199,2]
[331664325,1720610360861,25292.90490967,0.00011199,2]
[331664326,1720610373459,155.0,0.00011199,2]
[331664327,1720610377361,348.83942384,0.00011199,2]
[331664328,1720610408290,960.43759767,0.00011199,2]
[331664329,1720610423853,155.13435004,0.00011199,2]
[331664330,1720610429798,210.29076918,0.00011199,2]
[331664332,1720610444706,2559.23426054,0.00011199,2]
[331664333,1720610447393,561.56513108,0.00011199,2]
[331664334,1720610456368,348.83942384,0.00011199,2]
[331664335,1720610543875,2467.9783565,0.00011199,2]
[331664336,1720610560376,348.3259208,0.00011199,2]
[331664337,1720610628741,167.25339395,0.00011199,2]
[331664338,1720610759911,160.27013735,0.00011199,2]
[331664339,1720610783432,383.94134563,0.00011199,2]
[331664340,1720610830506,306.74,0.00010867,2]
[331664341,1720610898168,1850.95037542,0.00011199,2]
[331664343,1720610963265,2739.03404775,0.00011199,2]
[331664344,1720610998146,157.62746016,0.00011199,2]
[331664348,1720611031622,-1440.43885638,0.00012233,2]
[331664349,1720611031636,-9921.60304362,0.00012233,2]
[331664350,1720611031647,-279.3637101,0.00012273,2]
[331664351,1720611031656,-246.87561873,0.00012314,2]
[331664352,1720611031666,-150.0,0.000126,2]
[331664353,1720611031675,-169.55,0.00012773,2]
[331664354,1720611031685,-3526.50588544,0.00012827,2]
[331664355,1720611031730,-627.85298596,0.00012827,2]
[331664356,1720611031757,-5978.6911286,0.00012827,2]
[331664357,1720611031768,-168.42,0.00012871,2]
[331664358,1720611031777,-182.64,0.00012871,2]
[331664359,1720611031787,-250.0,0.00012871,2]
[331664360,1720611031798,-250.0,0.00012871,2]
[331664361,1720611031807,-1000.0,0.00012871,2]
[331664362,1720611031816,-13473.51,0.000129,2]
[331664363,1720611031826,-155.40245822,0.0001299,2]